Cogmind - Beta 13 @@@ ROGUE MODE // 2024.06.10 @ 20:15:22 Player: SovietPaperclip Result: Self-destructed Performance ------------- Evolutions (2) 1000 Regions Visited (6) 1200 Robots Destroyed (24) 120 Value Destroyed (550) 550 Prototype IDs (24) 480 Alien Tech Used (0) 0 Bonus (60) 60 TOTAL SCORE: 3410 Bonus ------- Follower Combat Kills 60 Cogmind --------- Core Integrity 518/550 Matter 295/300 Energy 170/170 System Corruption 0% Temperature Warning (360) Movement Treading (160) Location -8/Materials Parts ------- > --- POWER (1) -------- Makeshift Power Source > --- PROPULSION (4) --- Improved Treads Improved Treads Improved Treads > --- UTILITY (4) ------ Improved Heat Sink Medium Storage Unit Recoil Stabilizer > --- WEAPON (2) ------- Beam Cannon Beam Cannon > --- INVENTORY (10) --- Improved Ion Engine Gravmag System Gravmag System Large Matter Pod (150) Makeshift Sensor Array Signal Interpreter Improved Terrain Scanner System Shield Rocket Launcher Mini Grenade Launcher Peak State ------------ > --- POWER ------------ Makeshift Power Source > --- PROPULSION ------- Improved Treads Improved Treads Improved Treads > --- UTILITY ---------- Improved Heat Sink Medium Storage Unit Recoil Stabilizer Light Armor Plating > --- WEAPON ----------- Beam Cannon Beam Cannon > --- INVENTORY -------- Improved Ion Engine Gravmag System Gravmag System Large Matter Pod Makeshift Sensor Array Signal Interpreter Improved Terrain Scanner System Shield Rocket Launcher Mini Grenade Launcher [Rating: 22] Favorites ----------- Power Cooled Ion Engine Engine Cooled Ion Engine Propulsion Improved Treads Treads Improved Treads Utility Medium Storage Unit Device Improved Heat Sink Storage Medium Storage Unit Protection Light Armor Plating Weapon Beam Cannon Energy Cannon Beam Cannon Ballistic Gun Assault Rifle Build | -11 -10 -9 -9 -9 -8 -8 ------- Run | Yrd Mat Mat Min Exi Min Mat Slots Evolved 4 | . . 2 . . . 2 Power . | . . . . . . . Propulsion 2 | . . 1 . . . 1 Utility 2 | . . 1 . . . 1 Weapon . | . . . . . . . Parts Attached 20 | 7 3 6 1 2 . 1 Power 4 | 2 . 1 . 1 . . Engine 4 | 2 . 1 . 1 . . Core . | . . . . . . . Reactor . | . . . . . . . Propulsion 6 | 2 2 1 . 1 . . Treads 6 | 2 2 1 . 1 . . Leg . | . . . . . . . Wheel . | . . . . . . . Hover . | . . . . . . . Flight . | . . . . . . . Utility 6 | 1 1 2 1 . . 1 Device 3 | . . 1 1 . . 1 Storage 2 | 1 1 . . . . . Processor . | . . . . . . . Hackware . | . . . . . . . Protection 1 | . . 1 . . . . Artifact . | . . . . . . . Weapon 4 | 2 . 2 . . . . Energy Gun . | . . . . . . . Energy Cannon 2 | . . 2 . . . . Ballistic Gun 2 | 2 . . . . . . Ballistic Cannon . | . . . . . . . Launcher . | . . . . . . . Special Weapon . | . . . . . . . Impact Weapon . | . . . . . . . Slashing Weapon . | . . . . . . . Piercing Weapon . | . . . . . . . Special Melee Weapon . | . . . . . . . Unidentified Prototypes 1 | . . 1 . . . . Parts Lost 2 | . . 1 . . . 1 Power . | . . . . . . . Propulsion . | . . . . . . . Utility 2 | . . 1 . . . 1 Weapon . | . . . . . . . Highest Loss Streak 1 | . . 1 . . . 1 To Critical Strikes . | . . . . . . . Average Slot Usage (%) 93 | . 85 89 88 99 100 86 Engine 11 | . 14 11 11 10 11 9 Treads 32 | . 28 33 33 33 33 27 Device 7 | . . 8 . 11 11 16 Storage 11 | . 14 11 11 11 11 9 Protection 8 | . . 4 11 11 11 7 Energy Cannon 18 | . . 17 22 22 22 18 Ballistic Gun 4 | . 28 4 . . . . Naked Turns . | . . . . . . . Heaviest Build 28 | 13 18 28 28 28 24 25 Greatest Support 69 | 40 46 69 69 69 69 69 Greatest Overweight (x) . | . . . . . . . Average Overweight (x) . | . . . . . . . Largest Inventory Capacity 10 | 8 10 10 10 10 10 10 Average Capacity 9 | 7 9 10 10 10 10 10 Most Carried 10 | 3 10 10 10 10 10 10 Average Carried 9 | 1 6 9 9 9 10 10 Final Capacity 10 | 8 10 10 10 10 10 10 Final Carried 10 | 3 10 10 10 10 10 10 Class Distribution -------------------- 100% | Mutant Dominant Class ---------------- Mutant | -10/Materials Mutant | -9/Materials Mutant | -9/Mines Mutant | -9/Exiles Mutant | -8/Mines Mutant | -8/Materials Resources | -11 -10 -9 -9 -9 -8 -8 ----------- Run | Yrd Mat Mat Min Exi Min Mat Matter Collected 683 | 210 49 162 26 236 . . Remotely . | . . . . . . . Salvage Created 978 | . 150 362 . 265 48 153 Parts 55 | . 10 20 . 11 5 9 Haulers Intercepted 2 | . 1 1 . . . . Recyclers Shooed 1 | . . 1 . . . . Parts Field Recycled . | . . . . . . . Retrieved Matter . | . . . . . . . Parts Self-Destructed . | . . . . . . . Prevented . | . . . . . . . Kills | -11 -10 -9 -9 -9 -8 -8 ------- Run | Yrd Mat Mat Min Exi Min Mat Combat Hostiles Destroyed 20 | . 4 8 . 2 3 3 Guns 6 | . 4 2 . . . . Cannons 14 | . . 6 . 2 3 3 Classes Destroyed 6 | . 3 2 . . . 1 Hauler 2 | . 1 1 . . . . Watcher 2 | . . 2 . . . . Swarmer 10 | . 3 4 . . 3 . Grunt 7 | . 1 2 . 2 . 2 Duelist 1 | . . . . . . 1 Sentry 2 | . . 2 . . . . Best Kill Streak 3 | . 3 3 . 1 3 3 Combat Bots Only 3 | . 3 3 . 1 3 3 Max Kills in Single Turn 1 | . 1 1 . 1 1 1 Gunslinging . | . . . . . . . Exploded . | . . . . . . . Melee . | . . . . . . . Uniques/NPCs Destroyed . | . . . . . . . Combat | -11 -10 -9 -9 -9 -8 -8 -------- Run | Yrd Mat Mat Min Exi Min Mat Hostile Shots Fired 115 | . 21 44 1 . 32 17 Missed 23 | . 4 8 . . 8 3 Damage Taken 1013 | . 149 437 18 . 187 222 Core 128 | . 18 49 . . 29 32 Absorbed by Shields . | . . . . . . . Core Remaining (%) 90 | 100 92 . . . 80 . Volleys Fired 107 | . 23 36 2 25 11 10 Largest 2 | . 2 2 2 2 2 2 Hottest 120 | . 40 120 120 120 120 120 Shots Fired 214 | . 46 72 4 50 22 20 Gun 74 | . 46 28 . . . . Cannon 140 | . . 44 4 50 22 20 Launcher . | . . . . . . . Special . | . . . . . . . Kinetic 74 | . 46 28 . . . . Thermal 140 | . . 44 4 50 22 20 Explosive . | . . . . . . . Electromagnetic . | . . . . . . . Robot Hit Streak 12 | . 6 12 2 10 4 7 Robot Miss Streak 5 | . 5 4 2 2 4 4 Penetration Max . | . . . . . . . Secondary Targets 1 | . 1 . . . . . Max Gunslinging Chain 1 | . 1 . . . . . Shots Hit Robots 134 | . 22 49 2 37 11 13 Core Hits 48 | . 11 19 1 8 3 6 Critical Kills . | . . . . . . . Critical Parts Destroyed . | . . . . . . . Critical Strikes . | . . . . . . . Melee Attacks . | . . . . . . . Impact . | . . . . . . . Slashing . | . . . . . . . Piercing . | . . . . . . . Sneak Attacks . | . . . . . . . Combat Hostiles . | . . . . . . . Follow-up Attacks . | . . . . . . . Damage Inflicted 2100 | . 236 739 35 667 195 228 Guns 467 | . 236 231 . . . . Cannons 1633 | . . 508 35 667 195 228 Explosions . | . . . . . . . Melee . | . . . . . . . Ramming . | . . . . . . . Kinetic 467 | . 236 231 . . . . Thermal 1633 | . . 508 35 667 195 228 Explosive . | . . . . . . . Electromagnetic . | . . . . . . . Impact . | . . . . . . . Slashing . | . . . . . . . Piercing . | . . . . . . . Highest Corruption . | . . . . . . . Average Corruption . | . . . . . . . Corruption Purged . | . . . . . . . Corruption Blocked . | . . . . . . . Overload Shots . | . . . . . . . Overflow Damage 38 | . . . . 24 14 . Projectiles 38 | . . . . 24 14 . Explosions . | . . . . . . . Melee . | . . . . . . . Knockbacks . | . . . . . . . Impact . | . . . . . . . Kinetic . | . . . . . . . Secondary . | . . . . . . . Self-Inflicted Damage . | . . . . . . . Shots . | . . . . . . . Rammed . | . . . . . . . Targets Rammed . | . . . . . . . Kicked . | . . . . . . . Crushed . | . . . . . . . Highest Temperature 363 | . 6 140 63 108 363 360 Average Temperature 82 | . 6 36 34 37 183 204 Received Heat Transfer 312 | . 18 141 9 . . 144 Effects 2 | . . . . . . 2 Shutdowns 1 | . . . . . . 1 Damage (minor) 1 | . . . . . . 1 Siege Activations . | . . . . . . . Robots Corrupted . | . . . . . . . Combat Hostiles . | . . . . . . . Parts Fried . | . . . . . . . Impact Corruptions . | . . . . . . . Robots Melted . | . . . . . . . Combat Hostiles . | . . . . . . . Parts Melted 9 | . . 5 . 1 1 2 Heat Transferred 3404 | . . 1073 74 1369 407 481 Parts Sabotaged . | . . . . . . . Parts Stolen . | . . . . . . . Parts Stripped . | . . . . . . . Power Chain Reactions . | . . . . . . . Alert | -11 -10 -9 -9 -9 -8 -8 ------- Run | Yrd Mat Mat Min Exi Min Mat Peak Influence 300 | . 70 300 56 . 70 87 Initial 39 | . . 29 39 . . 27 Average 68 | . 33 152 39 . 66 44 Maximum Alert Level 1 | . . 1 . . . . Low Security (%) 94 | 100 100 75 100 . 100 100 Level 1 5 | . . 24 . . . . Level 2 . | . . . . . . . Level 3 . | . . . . . . . Level 4 . | . . . . . . . Level 5 . | . . . . . . . High Security . | . . . . . . . Max Security . | . . . . . . . Squads Dispatched 3 | . 1 2 . . . . Investigation 1 | . . 1 . . . . Extermination . | . . . . . . . Reinforcement 2 | . 1 1 . . . . Assault . | . . . . . . . Garrison . | . . . . . . . Intercept . | . . . . . . . Searches Triggered . | . . . . . . . Construction Impeded . | . . . . . . . Haulers Reinforced . | . . . . . . . Active Scanning Responses . | . . . . . . . Cargo Convoy Interrupts . | . . . . . . . Stealth | -11 -10 -9 -9 -9 -8 -8 --------- Run | Yrd Mat Mat Min Exi Min Mat Distress Signals 2 | . 1 1 . . . . Communications Jammed . | . . . . . . . Distress Signals . | . . . . . . . Times Spotted 36 | . 12 12 2 . 6 4 Peak Tracking Total 5 | . 5 4 2 . 3 3 Tactical Retreats . | . . . . . . . Traps | -11 -10 -9 -9 -9 -8 -8 ------- Run | Yrd Mat Mat Min Exi Min Mat Traps Triggered 1 | . . 1 . . . . Indirectly . | . . . . . . . Trap Hack Attempts . | . . . . . . . Triggered . | . . . . . . . Disarmed . | . . . . . . . Reprogrammed . | . . . . . . . Reused . | . . . . . . . Traps Extracted . | . . . . . . . Installed . | . . . . . . . Triggered . | . . . . . . . Machines | -11 -10 -9 -9 -9 -8 -8 ---------- Run | Yrd Mat Mat Min Exi Min Mat Machines Disabled . | . . . . . . . Max in Single Turn . | . . . . . . . Machines Repaired . | . . . . . . . Machines Dismantled . | . . . . . . . Machines Sabotaged . | . . . . . . . Overloaded Fab Kills . | . . . . . . . Hacking | -11 -10 -9 -9 -9 -8 -8 --------- Run | Yrd Mat Mat Min Exi Min Mat Machines Accessed 7 | . 5 . . 2 . . Terminals 5 | . 5 . . . . . Fabricators . | . . . . . . . Repair Stations . | . . . . . . . Recycling Units . | . . . . . . . Scanalyzers . | . . . . . . . Garrison Access . | . . . . . . . Total Hacks 12 | . 9 . . 3 . . Successful 6 | . 3 . . 3 . . Failed 6 | . 6 . . . . . Catastrophic . | . . . . . . . Database Lockouts . | . . . . . . . Manual 7 | . 4 . . 3 . . Terminals 9 | . 9 . . . . . Fabricators . | . . . . . . . Repair Stations . | . . . . . . . Recycling Units . | . . . . . . . Scanalyzers . | . . . . . . . Garrison Access . | . . . . . . . Terminal Hacks 6 | . 3 . . 3 . . Record 2 | . . . . 2 . . Part Schematic 1 | . 1 . . . . . Branch Access Points 1 | . 1 . . . . . Unreport Threat 1 | . 1 . . . . . Derelict Proto ID Bank 1 | . . . . 1 . . Fabricator Hacks . | . . . . . . . Repair Station Hacks . | . . . . . . . Recycling Unit Hacks . | . . . . . . . Scanalyzer . | . . . . . . . Garrison Access Hacks . | . . . . . . . Unauthorized Hacks . | . . . . . . . Terminals . | . . . . . . . Fabricators . | . . . . . . . Repair Stations . | . . . . . . . Recycling Units . | . . . . . . . Scanalyzers . | . . . . . . . Garrison Access . | . . . . . . . Data Cores Recovered . | . . . . . . . Used . | . . . . . . . Hacking Detections 3 | . 3 . . . . . Full Trace Events . | . . . . . . . Feedback Events . | . . . . . . . Feedback Blocked . | . . . . . . . Robot Schematics Acquired . | . . . . . . . Robots Built . | . . . . . . . Authchips . | . . . . . . . Time . | . . . . . . . Total Robot Build Rating . | . . . . . . . Part Schematics Acquired 1 | . 1 . . . . . Parts Built . | . . . . . . . Authchips . | . . . . . . . Time . | . . . . . . . Total Part Build Rating . | . . . . . . . Parts Repaired . | . . . . . . . Time . | . . . . . . . Parts Recycled . | . . . . . . . Recycled Matter . | . . . . . . . Retrieved Matter . | . . . . . . . Retrieved Components . | . . . . . . . Parts Scanalyzed . | . . . . . . . Part Schematics Acquired . | . . . . . . . Parts Damaged . | . . . . . . . Bothacking | -11 -10 -9 -9 -9 -8 -8 ------------ Run | Yrd Mat Mat Min Exi Min Mat Used RIF Installer . | . . . . . . . Robots Hacked . | . . . . . . . Non-combat . | . . . . . . . Combat . | . . . . . . . Robot Hacks Applied . | . . . . . . . Relay Couplers Released . | . . . . . . . Fabnet Peak Effective % . | . . . . . . . Robots Rewired . | . . . . . . . Allies Hacked . | . . . . . . . Hacks Repelled . | . . . . . . . Allies | -11 -10 -9 -9 -9 -8 -8 -------- Run | Yrd Mat Mat Min Exi Min Mat Total Allies 2 | . . . 2 . . . Largest Group 2 | . . . 2 2 . . Highest-Rated Group 51 | . . . 51 51 . . Highest-Rated Ally 31 | . . . 31 31 . . Total Orders . | . . . . . . . Ally Attacks 3 | . . . 3 . . . Total Damage 43 | . . . 43 . . . Kills 2 | . . . 2 . . . Allies Corrupted . | . . . . . . . Allies Melted . | . . . . . . . Intel | -11 -10 -9 -9 -9 -8 -8 ------- Run | Yrd Mat Mat Min Exi Min Mat Robot Analysis Total . | . . . . . . . Derelict Logs Recovered 3 | . . . 3 . . . Drone Launches . | . . . . . . . Drone Recoveries . | . . . . . . . Exploration | -11 -10 -9 -9 -9 -8 -8 ------------- Run | Yrd Mat Mat Min Exi Min Mat Turns Passed 2675 | 87 358 407 453 931 389 50 Spaces Moved 1402 | 48 173 165 267 531 207 11 Core 2 | 2 . . . . . . Treads 1400 | 46 173 165 267 531 207 11 Legs . | . . . . . . . Wheels . | . . . . . . . Hover . | . . . . . . . Flight . | . . . . . . . Fastest Speed 50 | 50 160 160 160 160 160 160 Average Speed 159 | 155 160 160 160 160 160 160 Slowest Speed 160 | 160 160 160 160 160 160 160 Overloaded Moves . | . . . . . . . Propulsion Burnouts . | . . . . . . . Robots Hopped . | . . . . . . . Cave-ins Triggered . | . . . . . . . Exploration Rate (%) 39 | 4 30 23 62 91 62 3 Regions Visited 6 Branch Regions 3 Pre-discovered Areas 1 | . . . . 1 . . Known Exits Taken 1 | . . . . . 1 . Unknown Exits Taken 5 | 1 1 1 1 1 . . Scrap Searched 1 | . . . 1 . . . Spaces Dug . | . . . . . . . Terrain Destroyed . | . . . . . . . Melee . | . . . . . . . Projectile . | . . . . . . . AOE . | . . . . . . . Terrain Rammed . | . . . . . . . Walls Destroyed . | . . . . . . . Machines Disabled . | . . . . . . . Actions | -11 -10 -9 -9 -9 -8 -8 --------- Run | Yrd Mat Mat Min Exi Min Mat Total 1630 | 57 215 240 289 564 243 22 Wait 67 | . 5 18 18 . 26 . Move 1396 | 47 172 164 266 530 206 11 Hop . | . . . . . . . Pick Up 23 | 3 8 8 1 3 . . Fast Attach 13 | 6 1 3 1 1 . 1 Attach 1 | . . 1 . . . . Detach . | . . . . . . . Swap 6 | 1 2 2 . 1 . . Drop 17 | . 4 8 1 4 . . Fire 107 | . 23 36 2 25 11 10 Melee . | . . . . . . . Ram . | . . . . . . . Kick . | . . . . . . . Crush . | . . . . . . . Escape Stasis . | . . . . . . . Rewire . | . . . . . . . Trap . | . . . . . . . Miscellaneous . | . . . . . . . Route ------- -11/Scrapyard -10/Materials (discovered 3 exits: [*Mat] / Min x2) -9/Materials -9/Mines (discovered 2 exits: *Mat / *Exi) -9/Exiles -8/Mines -8/Materials (discovered 1 exit: Fac) History --------- Turn | Location | Event 15 | -11/Scrapyard | Discovered new exit (range 13) 88 | -11/Scrapyard | Entered Materials 180 | -10/Materials | Identified exit to Mines 310 | -10/Materials | Build established: Mutant 338 | -10/Materials | Discovered new exit (range 14) 446 | -10/Materials | Entered another Materials area 446 | -9/Materials | Evolved 2 slots: Propulsion x1, Utility x1 813 | -9/Materials | Discovered new exit (range 14) 853 | -9/Materials | Entered Mines 866 | -9/Mines | Learned Materials emergency access door positions 876 | -9/Mines | Identified exit to Materials 900 | -9/Mines | Received a Rocket Launcher from a helpful Derelict 1184 | -9/Mines | Learned location of 1 exit from Materials 1291 | -9/Mines | Deemed a non-threat by the Exiles lab entrance 1293 | -9/Mines | Discovered new exit (range 5) 1306 | -9/Mines | Entered Exiles 1306 | -9/Exiles | Found Exiles lab destroyed 1306 | -9/Exiles | Accompanied by 2 allies 1336 | -9/Exiles | Led the pair of lost Derelicts to a safe place 1471 | -9/Exiles | Opened EX-Vault 1788 | -9/Exiles | Learned location of Zion (-7) 1879 | -9/Exiles | Discovered new exit (range 11) 2237 | -9/Exiles | Entered Mines 2618 | -8/Mines | Discovered exit to Materials (range 5) 2626 | -8/Mines | Entered Materials 2626 | -8/Materials | Evolved 2 slots: Propulsion x1, Utility x1 2627 | -8/Materials | Identified exit to Factory 2676 | -8/Materials | Self-destructed Last Messages --------------- 02372_ T-07 Excavator is excavating. 02618_ EXIT=FOUND: MATERIALS PARAMETERS=PROPULSION+1,UTILITY+1 LOCATION=MATERIALS GOAL=ESCAPE Loading 1 Materials exit... Loading Materials emergency access points (x7)... 02634_ Acquired Recoil Stabilizer. 02653_ Critical hit (Burn: +37). 02655_ Core Shielding melted. 02655_ L-31 Rogue destroyed. 02664_ G-47 Trooper destroyed. 02668_ Overheating: Mak. Power Source damaged (-18). 02668_ Lgt. Armor Plating destroyed. 02673_ Aluminum Leg melted. 02673_ G-47 Trooper destroyed. 02676_ Power failure, Mak. Power Source shutdown. Map ----- +----------------------------------------------------+ | | | | | | | | | | | | | | | | | ?????????????????????????????????????????????????? | | ?????????????????????????????????????????????????? | | ?????????????????????????????????????????????????? | | ?????????????????????????????????????????????????? | | ?????????????????????????????????????????????????? | | ?????????????????????????????????????????????????? | | ?????????????????????????????????????????????????? | | ?????????????????????????????????????????????????? | | ?????????????????????????????????????????????????? | | ?????????????????########????????????????????????? | | ?????????????????# #####????????????????????? | | ?????????????????# # #????????????????????? | | ?????????????????# ! # #????????????????????? | | ?????????????????# # #????????????????????? | | ?????????????????# != + #????????????????????? | | ?????????????????# # #????????????????????? | | ?????????????????######## #????????????????????? | | ????????????????????????#@ #????????????????????? | | ????????????????????????# #????????????????????? | | ????????????????????????# #????????????????????? | | ????????????????????????# #????????????????????? | | ????????????????????????g #????????????????????? | | ????????????????????????# ! #????????????????????? | | ????????????????????????# %=#????????????????????? | | ????????????????????????# * #????????????????????? | | ????????????????????????# #????????????????????? | | ????????????????????????? [%#????????????????????? | | ?????????????????????????=%!#????????????????????? | | ????????????????????????? =!#????????????????????? | | ????????????????????????? = ????????????????????? | | ????????????????????????? ????????????????????? | | ????????????????????????? ????????????????????? | | ?????????????????????????###?????????????????????? | | ?????????????????????????????????????????????????? | | ?????????????????????????????????????????????????? | | ?????????????????????????????????????????????????? | | ?????????????????????????????????????????????????? | | ?????????????????????????????????????????????????? | | ?????????????????????????????????????????????????? | | ?????????????????????????????????????????????????? | | ?????????????????????????????????????????????????? | | ?????????????????????????????????????????????????? | +----------------------------------------------------+ Best States ------------- Heat Dissipation 45 Energy Generation 15 Energy Capacity 280 Matter Stores 300 Matter Capacity 300 Sight Range 16 Terrain Scan Density 10 Armor Coverage 150 Evasion (%) 40 Recoil Reduction 7 Item Schematics ----------------- Cargo Storage Unit | -10/Materials | Hacked Robot Schematics ------------------ None Fabricated ------------ Nothing Alien Tech Used ----------------- None Achievements -------------- None Challenges ------------ None Game ------ Seed FlakMappingShockpuncher Manual? 0 Play Time 00:13:13 Cumulative 117.4 hours Start 2024.06.08 @ 16:03:11 End 2024.06.10 @ 20:15:22 Sessions 3 Manual Loads 0 Difficulty Rogue Special Mode None Game No. 157 Rogue 157 Adventurer 0 Explorer 0 Win Type - Total 1 Types 1/0/0/0/0/0/0/0/0 Lore% 49 Gallery% 53 Achievement% 50 Wizard Run 0 Options --------- Layout 1 ASCII 0 Keyboard 0 Movement Mouse Keybinds 0 Fullscreen 1 Font 32/SmallcapsGlow Map View 50x35 Zoom Use 0% Tactical HUD 1 Map Filters NONE Filters NONE Steam 1 RUN: eb157dd4-a633-450d-9a0b-8b188f1aa24e